[Event "European School-ch G13 2024"]
[Site "Limerick"]
[Date "2024.06.02"]
[Round "1.1"]
[White "Aydogan, Arya"]
[Black "Zeybek, Kayla Nil"]
[Result "1/2-1/2"]
[ECO "C40"]
[WhiteElo "1755"]
[BlackElo "1638"]
[PlyCount "120"]
[EventDate "2024.05.31"]
[EventType "swiss"]
[EventCountry "IRL"]
[TimeControl "5400+30"]

1. e4 {[%emt 0:00:08]} e5 {[%emt 0:00:16]} 2. Nf3 {[%emt 0:00:12]} Qe7 {[%emt 0:00:50]} 3. Nc3 {[%emt 0:05:19]} c6 {[%emt 0:04:38]} 4. Be2 {[%emt 0:06:07]} Nf6 {[%emt 0:00:43]} 5. O-O {[%emt 0:05:44]} d6 {[%emt 0:00:52]} 6. d4 {[%emt 0:07:05]} Bg4 {[%emt 0:01:40]} 7. h3 {[%emt 0:06:33]} Bh5 {[%emt 0:00:34]} 8. Re1 {[%emt 0:04:42]} Qc7 {[%emt 0:01:34]} 9. Be3 {[%emt 0:04:00]} Nbd7 {[%emt 0:02:31]} 10. Qd2 {[%emt 0:04:43]} Be7 {[%emt 0:01:30]} 11. Rad1 {[%emt 0:05:45]} O-O {[%emt 0:00:33]} 12. Nh2 {[%emt 0:02:55]} Bxe2 {[%emt 0:05:47]} 13. Qxe2 {[%emt 0:01:17]} Rfe8 {[%emt 0:02:16]} 14. f4 {[%emt 0:07:03]} exf4 {[%emt 0:23:38]} 15. Bxf4 {[%emt 0:00:46]} g6 {[%emt 0:00:53]} 16. Ng4 {[%emt 0:05:19]} Bf8 {[%emt 0:08:54]} 17. Nxf6+ {[%emt 0:03:36]} Nxf6 {[%emt 0:00:03]} 18. Qf3 {[%emt 0:02:01]} Bg7 {[%emt 0:09:48]} 19. g4 {[%emt 0:05:52]} Nd7 {[%emt 0:13:11]} 20. Qg3 {[%emt 0:02:41]} Qb6 {[%emt 0:03:04]} 21. Qd3 {[%emt 0:04:12]} c5 {[%emt 0:07:38]} 22. Nd5 {[%emt 0:02:40]} Bxd4+ {[%emt 0:01:29]} 23. Qxd4 {[%emt 0:00:16]} cxd4 {[%emt 0:00:29]} 24. Nxb6 {[%emt 0:00:05]} Nxb6 {[%emt 0:03:20]} 25. Rxd4 {[%emt 0:00:39]} d5 {[%emt 0:00:58]} 26. Kf2 {[%emt 0:01:22]} dxe4 {[%emt 0:01:35]} 27. Rexe4 {[%emt 0:00:08]} Kg7 {[%emt 0:01:00]} 28. c3 {[%emt 0:02:25]} Rad8 {[%emt 0:02:00]} 29. Rxe8 {[%emt 0:02:29]} Rxe8 {[%emt 0:00:07]} 30. Bc7 {[%emt 0:00:46]} Re6 {[%emt 0:00:07]} 31. b3 {[%emt 0:02:21]} Rc6 {[%emt 0:02:14]} 32. Bxb6 {[%emt 0:00:09]} Rxb6 {[%emt 0:00:03]} 33. Rd7 {[%emt 0:01:04]} Kf6 {[%emt 0:00:11]} 34. Ke3 {[%emt 0:01:04]} Ke6 {[%emt 0:00:08]} 35. Rd4 {[%emt 0:01:14]} Rc6 {[%emt 0:01:37]} 36. c4 {[%emt 0:00:26]} Ra6 {[%emt 0:00:31]} 37. Rd2 {[%emt 0:00:37]} Ke5 {[%emt 0:00:52]} 38. Rd7 {[%emt 0:01:37]} Ke6 {[%emt 0:01:00]} 39. Rxb7 {[%emt 0:00:16]} Rxa2 {[%emt 0:00:03]} 40. Kf3 {[%emt 0:01:25]} Rb2 {[%emt 0:01:11]} 41. c5 {[%emt 0:01:32]} Rb1 {[%emt 0:00:31]} 42. b4 {[%emt 0:00:53]} Kd5 {[%emt 0:00:26]} 43. Rxa7 {[%emt 0:00:32]} Rb3+ {[%emt 0:00:32]} 44. Kg2 {[%emt 0:00:17]} Rb2+ {[%emt 0:00:04]} 45. Kf1 {[%emt 0:01:03]} Rb1+ {[%emt 0:00:55]} 46. Ke2 {[%emt 0:00:25]} Rb2+ {[%emt 0:00:10]} 47. Kd1 {[%emt 0:00:32]} Rb1+ {[%emt 0:00:38]} 48. Kc2 {[%emt 0:00:07]} Rxb4 {[%emt 0:00:03]} 49. Rxf7 {[%emt 0:00:08]} Kxc5 {[%emt 0:00:42]} 50. Rxh7 {[%emt 0:00:09]} Rd4 {[%emt 0:00:57]} 51. Re7 {[%emt 0:01:27]} Rd6 {[%emt 0:00:40]} 52. Kc3 {[%emt 0:00:40]} Rd5 {[%emt 0:00:19]} 53. Re4 {[%emt 0:00:44]} Kc6 {[%emt 0:00:41]} 54. Re6+ {[%emt 0:00:39]} Rd6 {[%emt 0:00:13]} 55. Re5 {[%emt 0:00:17]} Kb6 {[%emt 0:00:28]} 56. Kc4 {[%emt 0:00:22]} Kc6 {[%emt 0:00:21]} 57. Rc5+ {[%emt 0:00:12]} Kd7 {[%emt 0:00:53]} 58. Rd5 {[%emt 0:00:28]} Ke6 {[%emt 0:00:21]} 59. Rc5 {[%emt 0:01:18]} Kf6 {[%emt 0:00:36]} 60. Rc8 {[%emt 0:00:19]} Kg5 {[%emt 0:00:26]} 1/2-1/2

[Event "European School-ch G13 2024"]
[Site "Limerick"]
[Date "2024.06.02"]
[Round "1.2"]
[White "Dogan, Ipek"]
[Black "Doolin, Nemhain"]
[Result "1-0"]
[ECO "D35"]
[WhiteElo "1551"]
[BlackElo "1726"]
[PlyCount "49"]
[EventDate "2024.05.31"]
[EventType "swiss"]
[EventCountry "IRL"]
[TimeControl "5400+30"]

1. d4 {[%emt 0:00:03]} d5 {[%emt 0:00:05]} 2. c4 {[%emt 0:00:03]} e6 {[%emt 0:00:03]} 3. cxd5 {[%emt 0:00:04]} exd5 {[%emt 0:00:04]} 4. Nf3 {[%emt 0:00:11]} Bd6 {[%emt 0:00:06]} 5. Nc3 {[%emt 0:00:21]} Nf6 {[%emt 0:00:06]} 6. Bg5 {[%emt 0:00:18]} c6 {[%emt 0:00:31]} 7. Qc2 {[%emt 0:00:19]} O-O {[%emt 0:00:33]} 8. e3 {[%emt 0:00:35]} Bg4 {[%emt 0:00:46]} 9. Ne5 {[%emt 0:01:42]} Bh5 {[%emt 0:01:52]} 10. Bd3 {[%emt 0:01:59]} h6 {[%emt 0:01:55]} 11. Bh4 {[%emt 0:01:11]} g5 {[%emt 0:05:31]} 12. Bg3 {[%emt 0:01:38]} Bxe5 {[%emt 0:13:03]} 13. dxe5 {[%emt 0:02:35]} Nfd7 {[%emt 0:01:21]} 14. h4 {[%emt 0:02:07]} g4 {[%emt 0:04:44]} 15. f3 {[%emt 0:08:35]} Nc5 {[%emt 0:03:02]} 16. Bf5 {[%emt 0:03:40]} gxf3 {[%emt 0:15:07]} 17. gxf3 {[%emt 0:00:13]} Ne6 {[%emt 0:18:01]} 18. Rg1 {[%emt 0:06:35]} Kh8 {[%emt 0:01:38]} 19. O-O-O {[%emt 0:01:43]} Rg8 {[%emt 0:03:43]} 20. Ne2 {[%emt 0:14:23]} Bg6 {[%emt 0:10:33]} 21. Nf4 {[%emt 0:01:47]} Nxf4 {[%emt 0:05:12]} 22. Bxf4 {[%emt 0:00:44]} Qe8 {[%emt 0:00:48]} 23. e6 {[%emt 0:01:50]} Qe7 {[%emt 0:06:35]} 24. exf7 {[%emt 0:01:20]} Bxf7 {[%emt 0:02:52]} 25. Qc3+ {[%emt 0:00:09]} 1-0

[Event "European School-ch G13 2024"]
[Site "Limerick"]
[Date "2024.06.02"]
[Round "1.3"]
[White "Sahin, Cagla Yudum"]
[Black "B. Berglindardottir, Emilia Embla"]
[Result "1-0"]
[ECO "B07"]
[WhiteElo "1720"]
[BlackElo "1544"]
[PlyCount "81"]
[EventDate "2024.05.31"]
[EventType "swiss"]
[EventCountry "IRL"]
[TimeControl "5400+30"]

1. e4 {[%emt 0:00:03]} d6 {[%emt 0:00:06]} 2. d4 {[%emt 0:00:04]} Nf6 {[%emt 0:00:06]} 3. Bd3 {[%emt 0:00:09]} g6 {[%emt 0:00:09]} 4. Nf3 {[%emt 0:00:28]} Bg7 {[%emt 0:00:17]} 5. c3 {[%emt 0:00:09]} O-O {[%emt 0:00:44]} 6. O-O {[%emt 0:00:18]} Re8 {[%emt 0:01:08]} 7. h3 {[%emt 0:00:40]} e5 {[%emt 0:01:09]} 8. Re1 {[%emt 0:01:26]} Nbd7 {[%emt 0:01:17]} 9. Nbd2 {[%emt 0:00:54]} c5 {[%emt 0:00:38]} 10. d5 {[%emt 0:02:59]} a6 {[%emt 0:02:22]} 11. a4 {[%emt 0:02:27]} Rb8 {[%emt 0:00:45]} 12. a5 {[%emt 0:01:40]} b5 {[%emt 0:03:43]} 13. axb6 {[%emt 0:00:41]} Qxb6 {[%emt 0:00:29]} 14. Nc4 {[%emt 0:02:04]} Qc7 {[%emt 0:00:28]} 15. Qe2 {[%emt 0:04:39]} Ra8 {[%emt 0:01:57]} 16. b4 {[%emt 0:15:52]} Bb7 {[%emt 0:10:00]} 17. Nfd2 {[%emt 0:08:10]} Nb6 {[%emt 0:04:59]} 18. bxc5 {[%emt 0:02:37]} Qxc5 {[%emt 0:01:02]} 19. Ba3 {[%emt 0:01:02]} Qc7 {[%emt 0:01:49]} 20. Nxd6 {[%emt 0:08:12]} Reb8 {[%emt 0:02:20]} 21. Nxb7 {[%emt 0:03:20]} Rxb7 {[%emt 0:00:33]} 22. c4 {[%emt 0:03:44]} Na4 {[%emt 0:02:27]} 23. Qe3 {[%emt 0:02:53]} Nh5 {[%emt 0:04:44]} 24. c5 {[%emt 0:03:55]} Nf4 {[%emt 0:08:11]} 25. Bc2 {[%emt 0:00:38]} Nb6 {[%emt 0:08:37]} 26. Rec1 {[%emt 0:02:59]} Nc8 {[%emt 0:03:25]} 27. Ba4 {[%emt 0:03:45]} Raa7 {[%emt 0:01:27]} 28. c6 {[%emt 0:01:20]} Rb8 {[%emt 0:02:40]} 29. Nc4 {[%emt 0:04:23]} Bf8 {[%emt 0:12:41]} 30. d6 {[%emt 0:02:54]} Nxd6 {[%emt 0:01:51]} 31. Bxd6 {[%emt 0:01:10]} Bxd6 {[%emt 0:00:11]} 32. Nxd6 {[%emt 0:00:14]} Qxd6 {[%emt 0:00:08]} 33. Qxa7 {[%emt 0:00:49]} Ne2+ {[%emt 0:00:24]} 34. Kh2 {[%emt 0:00:42]} Nxc1 {[%emt 0:00:20]} 35. Rxc1 {[%emt 0:00:17]} Rc8 {[%emt 0:03:05]} 36. c7 {[%emt 0:00:56]} Qf6 {[%emt 0:01:41]} 37. Qc5 {[%emt 0:00:53]} Qe6 {[%emt 0:01:34]} 38. Qd5 {[%emt 0:00:49]} Qf6 {[%emt 0:00:27]} 39. Kg1 {[%emt 0:00:40]} Qb6 {[%emt 0:01:29]} 40. Qc5 {[%emt 0:01:26]} Qe6 {[%emt 0:00:49]} 41. Rd1 {[%emt 0:01:03]} 1-0

[Event "European School-ch G13 2024"]
[Site "Limerick"]
[Date "2024.06.02"]
[Round "1.4"]
[White "Tumer, Eylul"]
[Black "Isopescu, Iulia Elena"]
[Result "1/2-1/2"]
[ECO "B23"]
[WhiteElo "1539"]
[BlackElo "1701"]
[PlyCount "34"]
[EventDate "2024.05.31"]
[EventType "swiss"]
[EventCountry "IRL"]
[TimeControl "5400+30"]

1. e4 {[%emt 0:00:02]} c5 {[%emt 0:03:16]} 2. Nc3 {[%emt 0:00:01]} g6 {[%emt 0:00:39]} 3. d4 {[%emt 0:00:05]} cxd4 {[%emt 0:00:21]} 4. Qxd4 {[%emt 0:00:02]} Nf6 {[%emt 0:00:30]} 5. Bb5 {[%emt 0:00:05]} Nc6 {[%emt 0:15:33]} 6. Bxc6 {[%emt 0:00:05]} dxc6 {[%emt 0:01:55]} 7. Qxd8+ {[%emt 0:01:35]} Kxd8 {[%emt 0:00:28]} 8. Bf4 {[%emt 0:02:57]} Bd7 {[%emt 0:13:23]} 9. Nf3 {[%emt 0:01:20]} Bg7 {[%emt 0:04:54]} 10. O-O-O {[%emt 0:02:25]} Ke8 {[%emt 0:08:10]} 11. e5 {[%emt 0:03:22]} Nh5 {[%emt 0:04:57]} 12. Ne2 {[%emt 0:04:12]} Bg4 {[%emt 0:11:16]} 13. Bg3 {[%emt 0:19:41]} Nxg3 {[%emt 0:01:40]} 14. hxg3 {[%emt 0:00:18]} Bxf3 {[%emt 0:03:38]} 15. gxf3 {[%emt 0:00:04]} Bxe5 {[%emt 0:00:28]} 16. f4 {[%emt 0:00:11]} Bg7 {[%emt 0:01:56]} 17. g4 {[%emt 0:00:26]} Rd8 {[%emt 0:08:37]} 1/2-1/2

[Event "European School-ch G13 2024"]
[Site "Limerick"]
[Date "2024.06.02"]
[Round "1.5"]
[White "Yazici, Zumral"]
[Black "Babijczuk, Nina"]
[Result "1-0"]
[ECO "C45"]
[WhiteElo "1650"]
[BlackElo "1514"]
[PlyCount "39"]
[EventDate "2024.05.31"]
[EventType "swiss"]
[EventCountry "IRL"]
[TimeControl "5400+30"]

1. e4 {[%emt 0:00:02]} e5 {[%emt 0:00:16]} 2. Nf3 {[%emt 0:00:03]} Nc6 {[%emt 0:00:19]} 3. Nc3 {[%emt 0:00:02]} Nf6 {[%emt 0:00:30]} 4. d4 {[%emt 0:00:03]} exd4 {[%emt 0:00:36]} 5. Nxd4 {[%emt 0:00:04]} Nxd4 {[%emt 0:00:21]} 6. Qxd4 {[%emt 0:00:03]} d6 {[%emt 0:00:52]} 7. Bd2 {[%emt 0:00:24]} Be6 {[%emt 0:00:38]} 8. f3 {[%emt 0:03:07]} d5 {[%emt 0:01:18]} 9. exd5 {[%emt 0:11:17]} Bf5 {[%emt 0:02:17]} 10. O-O-O {[%emt 0:02:59]} Bd6 {[%emt 0:00:33]} 11. Re1+ {[%emt 0:02:38]} Be7 {[%emt 0:00:54]} 12. g4 {[%emt 0:00:54]} c5 {[%emt 0:01:42]} 13. Qe5 {[%emt 0:02:04]} Bd7 {[%emt 0:03:45]} 14. d6 {[%emt 0:00:31]} Ng8 {[%emt 0:02:50]} 15. Qxg7 {[%emt 0:00:36]} f6 {[%emt 0:02:27]} 16. Qxh8 {[%emt 0:00:57]} Kf7 {[%emt 0:01:35]} 17. Qxh7+ {[%emt 0:02:24]} Kf8 {[%emt 0:01:19]} 18. dxe7+ {[%emt 0:00:03]} Nxe7 {[%emt 0:01:02]} 19. Bh6+ {[%emt 0:00:05]} Ke8 {[%emt 0:01:58]} 20. Qg8# {[%emt 0:00:03]} 1-0

[Event "European School-ch G13 2024"]
[Site "Limerick"]
[Date "2024.06.02"]
[Round "2.1"]
[White "Doolin, Bedhbh"]
[Black "Sahin, Cagla Yudum"]
[Result "0-1"]
[ECO "C56"]
[WhiteElo "1644"]
[BlackElo "1720"]
[PlyCount "92"]
[EventDate "2024.05.31"]
[EventType "swiss"]
[EventCountry "IRL"]
[TimeControl "5400+30"]

1. e4 {[%emt 0:00:02]} e5 {[%emt 0:00:03]} 2. Nf3 {[%emt 0:00:02]} Nc6 {[%emt 0:00:04]} 3. Bc4 {[%emt 0:00:05]} Nf6 {[%emt 0:00:04]} 4. d4 {[%emt 0:00:10]} exd4 {[%emt 0:00:07]} 5. e5 {[%emt 0:00:05]} d5 {[%emt 0:00:16]} 6. Bb5 {[%emt 0:00:05]} Ne4 {[%emt 0:00:11]} 7. Nxd4 {[%emt 0:00:08]} Bc5 {[%emt 0:00:08]} 8. Bxc6+ {[%emt 0:00:43]} bxc6 {[%emt 0:00:10]} 9. Be3 {[%emt 0:00:07]} O-O {[%emt 0:04:58]} 10. O-O {[%emt 0:00:21]} Qe8 {[%emt 0:01:28]} 11. f3 {[%emt 0:10:07]} Nf6 {[%emt 0:01:43]} 12. Bf2 {[%emt 0:11:34]} Qxe5 {[%emt 0:05:29]} 13. Re1 {[%emt 0:02:58]} Qf4 {[%emt 0:05:53]} 14. Nc3 {[%emt 0:19:30]} Bd7 {[%emt 0:13:21]} 15. Nce2 {[%emt 0:15:57]} Qg5 {[%emt 0:04:19]} 16. h4 {[%emt 0:08:00]} Qe5 {[%emt 0:19:06]} 17. Qd2 {[%emt 0:13:30]} Rfe8 {[%emt 0:09:28]} 18. Nf4 {[%emt 0:04:37]} Qd6 {[%emt 0:01:30]} 19. Nd3 {[%emt 0:03:59]} Bb6 {[%emt 0:02:35]} 20. c3 {[%emt 0:02:19]} c5 {[%emt 0:02:09]} 21. Nc2 {[%emt 0:00:46]} c4 {[%emt 0:05:07]} 22. Nf4 {[%emt 0:01:22]} Bxf2+ {[%emt 0:00:56]} 23. Kxf2 {[%emt 0:00:08]} c5 {[%emt 0:03:32]} 24. Rad1 {[%emt 0:00:35]} Be6 {[%emt 0:02:03]} 25. g3 {[%emt 0:00:53]} Rad8 {[%emt 0:00:41]} 26. Ne3 {[%emt 0:00:10]} d4 {[%emt 0:01:04]} 27. cxd4 {[%emt 0:01:08]} cxd4 {[%emt 0:00:21]} 28. Nc2 {[%emt 0:00:14]} d3 {[%emt 0:01:00]} 29. Ne3 {[%emt 0:00:25]} Qd4 {[%emt 0:01:03]} 30. Rc1 {[%emt 0:01:01]} Rc8 {[%emt 0:01:08]} 31. Ne2 {[%emt 0:00:53]} Qb6 {[%emt 0:01:16]} 32. Nf4 {[%emt 0:00:46]} Nd5 {[%emt 0:01:34]} 33. Nfxd5 {[%emt 0:00:27]} Bxd5 {[%emt 0:00:04]} 34. Kg2 {[%emt 0:00:25]} Qb7 {[%emt 0:01:37]} 35. Nxd5 {[%emt 0:01:24]} Qxd5 {[%emt 0:00:07]} 36. Rcd1 {[%emt 0:01:19]} f6 {[%emt 0:01:24]} 37. Qf2 {[%emt 0:00:38]} Qa5 {[%emt 0:01:09]} 38. a3 {[%emt 0:00:56]} Kf7 {[%emt 0:00:47]} 39. Re4 {[%emt 0:00:28]} Rxe4 {[%emt 0:00:44]} 40. fxe4 {[%emt 0:00:17]} Qc5 {[%emt 0:00:52]} 41. Qf4 {[%emt 0:00:22]} Qd4 {[%emt 0:00:27]} 42. Qf5 {[%emt 0:01:10]} Qxb2+ {[%emt 0:02:48]} 43. Kf3 {[%emt 0:00:21]} Qe2+ {[%emt 0:00:16]} 44. Kf4 {[%emt 0:00:14]} Qf2+ {[%emt 0:00:35]} 45. Kg4 {[%emt 0:00:18]} Qxf5+ {[%emt 0:00:13]} 46. exf5 {[%emt 0:00:17]} c3 {[%emt 0:00:16]} 0-1

[Event "European School-ch G13 2024"]
[Site "Limerick"]
[Date "2024.06.02"]
[Round "2.3"]
[White "Isopescu, Iulia Elena"]
[Black "Dogan, Ipek"]
[Result "0-1"]
[ECO "B90"]
[WhiteElo "1701"]
[BlackElo "1551"]
[PlyCount "66"]
[EventDate "2024.05.31"]
[EventType "swiss"]
[EventCountry "IRL"]
[TimeControl "5400+30"]

1. e4 {[%emt 0:00:09]} c5 {[%emt 0:00:05]} 2. Nf3 {[%emt 0:00:23]} d6 {[%emt 0:00:04]} 3. d4 {[%emt 0:00:24]} cxd4 {[%emt 0:00:05]} 4. Nxd4 {[%emt 0:00:05]} Nf6 {[%emt 0:00:04]} 5. Nc3 {[%emt 0:00:22]} a6 {[%emt 0:00:03]} 6. f3 {[%emt 0:00:49]} e5 {[%emt 0:01:12]} 7. Nb3 {[%emt 0:00:34]} Be6 {[%emt 0:00:20]} 8. Be3 {[%emt 0:00:31]} h5 {[%emt 0:00:11]} 9. Be2 {[%emt 1:31:43]} Nbd7 {[%emt 0:01:06]} 10. Nd5 {[%emt 0:00:00]} Bxd5 {[%emt 0:00:16]} 11. exd5 {[%emt 0:00:00]} g6 {[%emt 0:00:15]} 12. O-O {[%emt 0:00:00]} Bg7 {[%emt 0:01:04]} 13. c4 {[%emt 0:00:00]} Rc8 {[%emt 0:06:14]} 14. Qd2 {[%emt 0:00:00]} b6 {[%emt 0:00:42]} 15. Qb4 {[%emt 0:00:00]} a5 {[%emt 0:05:32]} 16. Qa4 {[%emt 0:00:00]} O-O {[%emt 0:01:25]} 17. Rfd1 {[%emt 0:00:00]} e4 {[%emt 0:02:00]} 18. f4 {[%emt 0:00:00]} Ng4 {[%emt 0:08:54]} 19. Bxg4 {[%emt 0:00:00]} hxg4 {[%emt 0:00:07]} 20. Rd2 {[%emt 0:00:00]} Qc7 {[%emt 0:08:03]} 21. Rc1 {[%emt 0:00:00]} Rfe8 {[%emt 0:07:16]} 22. Re2 {[%emt 0:00:00]} g5 {[%emt 0:14:15]} 23. g3 {[%emt 0:07:00]} gxf4 {[%emt 0:02:43]} 24. gxf4 {[%emt 0:00:00]} f5 {[%emt 0:14:21]} 25. a3 {[%emt 0:00:00]} Kf7 {[%emt 0:02:47]} 26. Rg2 {[%emt 0:00:00]} Rh8 {[%emt 0:03:08]} 27. Qb5 {[%emt 0:00:47]} Rh3 {[%emt 0:01:08]} 28. Bd4 {[%emt 0:00:48]} Rxb3 {[%emt 0:00:31]} 29. Qxb3 {[%emt 0:00:03]} Bxd4+ {[%emt 0:00:07]} 30. Kf1 {[%emt 0:00:21]} Nc5 {[%emt 0:00:45]} 31. Qg3 {[%emt 0:00:35]} Rh8 {[%emt 0:00:16]} 32. b3 {[%emt 0:00:56]} Rh3 {[%emt 0:00:13]} 33. Qe1 {[%emt 0:00:05]} Rf3+ {[%emt 0:00:19]} 0-1

[Event "European School-ch G13 2024"]
[Site "Limerick"]
[Date "2024.06.02"]
[Round "2.4"]
[White "Zeybek, Kayla Nil"]
[Black "Tumer, Eylul"]
[Result "1-0"]
[ECO "A45"]
[WhiteElo "1638"]
[BlackElo "1539"]
[PlyCount "47"]
[EventDate "2024.05.31"]
[EventType "swiss"]
[EventCountry "IRL"]
[TimeControl "5400+30"]

1. d4 {[%emt 0:00:02]} Nf6 {[%emt 0:00:07]} 2. Bf4 {[%emt 0:00:06]} g6 {[%emt 0:00:06]} 3. Nc3 {[%emt 0:00:04]} d5 {[%emt 0:00:03]} 4. e3 {[%emt 0:00:29]} Bg7 {[%emt 0:00:03]} 5. h4 {[%emt 0:00:06]} e6 {[%emt 0:00:09]} 6. Bd3 {[%emt 0:01:23]} c5 {[%emt 0:00:31]} 7. Nb5 {[%emt 0:00:19]} Qa5+ {[%emt 0:07:10]} 8. b4 {[%emt 0:10:06]} Qxb4+ {[%emt 0:04:37]} 9. c3 {[%emt 0:00:23]} Qb2 {[%emt 0:04:42]} 10. Nc7+ {[%emt 0:17:15]} Kd8 {[%emt 0:00:44]} 11. Qc1 {[%emt 0:00:18]} Qxc1+ {[%emt 0:02:37]} 12. Rxc1 {[%emt 0:00:02]} Nh5 {[%emt 0:00:30]} 13. Bh2 {[%emt 0:01:14]} e5 {[%emt 0:00:22]} 14. Nxa8 {[%emt 0:01:04]} b6 {[%emt 0:03:37]} 15. dxe5 {[%emt 0:04:10]} Nc6 {[%emt 0:01:37]} 16. Nf3 {[%emt 0:07:38]} c4 {[%emt 0:07:39]} 17. Be2 {[%emt 0:01:47]} Be6 {[%emt 0:03:18]} 18. Nd4 {[%emt 0:06:00]} Kd7 {[%emt 0:03:26]} 19. Nxc6 {[%emt 0:01:51]} Kxc6 {[%emt 0:00:28]} 20. g4 {[%emt 0:00:13]} Bxg4 {[%emt 0:01:20]} 21. Bxg4 {[%emt 0:00:05]} Rxa8 {[%emt 0:00:04]} 22. Bxh5 {[%emt 0:00:50]} gxh5 {[%emt 0:00:02]} 23. Rg1 {[%emt 0:00:06]} Bh6 {[%emt 0:00:06]} 24. Bf4 {[%emt 0:00:15]} 1-0

[Event "European School-ch G13 2024"]
[Site "Limerick"]
[Date "2024.06.02"]
[Round "2.5"]
[White "Doolin, Nemhain"]
[Black "Aydogan, Arya"]
[Result "1/2-1/2"]
[ECO "C54"]
[WhiteElo "1726"]
[BlackElo "1755"]
[PlyCount "88"]
[EventDate "2024.05.31"]
[EventType "swiss"]
[EventCountry "IRL"]
[TimeControl "5400+30"]

1. e4 {[%emt 0:00:02]} e5 {[%emt 0:00:12]} 2. Nf3 {[%emt 0:00:03]} Nc6 {[%emt 0:00:28]} 3. Bc4 {[%emt 0:00:01]} Bc5 {[%emt 0:00:40]} 4. c3 {[%emt 0:00:03]} Nf6 {[%emt 0:00:26]} 5. d4 {[%emt 0:00:03]} exd4 {[%emt 0:00:32]} 6. b4 {[%emt 0:00:03]} Bb6 {[%emt 0:00:18]} 7. e5 {[%emt 0:00:03]} d5 {[%emt 0:00:31]} 8. exf6 {[%emt 0:00:07]} dxc4 {[%emt 0:00:29]} 9. Qe2+ {[%emt 0:00:04]} Be6 {[%emt 0:01:06]} 10. b5 {[%emt 0:00:07]} Na5 {[%emt 0:01:31]} 11. fxg7 {[%emt 0:01:30]} Rg8 {[%emt 0:00:30]} 12. Nxd4 {[%emt 0:00:36]} Bxd4 {[%emt 0:06:41]} 13. cxd4 {[%emt 0:00:10]} Rxg7 {[%emt 0:00:31]} 14. O-O {[%emt 0:00:09]} Qd5 {[%emt 0:03:22]} 15. g3 {[%emt 0:10:52]} O-O-O {[%emt 0:04:43]} 16. Qe5 {[%emt 0:04:30]} Qxe5 {[%emt 0:05:40]} 17. dxe5 {[%emt 0:00:28]} Rd5 {[%emt 0:00:24]} 18. a4 {[%emt 0:03:06]} Nb3 {[%emt 0:00:46]} 19. Ra3 {[%emt 0:06:44]} Nxc1 {[%emt 0:05:23]} 20. Rxc1 {[%emt 0:00:13]} Rxe5 {[%emt 0:00:12]} 21. Nd2 {[%emt 0:03:54]} Rg4 {[%emt 0:04:45]} 22. Rac3 {[%emt 0:04:59]} Rc5 {[%emt 0:04:13]} 23. f4 {[%emt 0:04:53]} Kd7 {[%emt 0:04:02]} 24. Ne4 {[%emt 0:01:54]} Rf5 {[%emt 0:00:25]} 25. h3 {[%emt 0:01:06]} Rg7 {[%emt 0:02:17]} 26. Kh2 {[%emt 0:09:29]} c6 {[%emt 0:03:48]} 27. bxc6+ {[%emt 0:10:01]} Kxc6 {[%emt 0:00:14]} 28. Nd2 {[%emt 0:00:51]} Rc5 {[%emt 0:00:32]} 29. Nxc4 {[%emt 0:02:48]} Bxc4 {[%emt 0:00:09]} 30. Rxc4 {[%emt 0:00:02]} b6 {[%emt 0:00:10]} 31. g4 {[%emt 0:05:19]} Rg6 {[%emt 0:00:18]} 32. a5 {[%emt 0:32:20]} Rd6 {[%emt 0:00:19]} 33. axb6 {[%emt 0:00:00]} axb6 {[%emt 0:00:06]} 34. Rxc5+ {[%emt 0:00:00]} bxc5 {[%emt 0:00:07]} 35. Kg3 {[%emt 0:00:00]} Kb5 {[%emt 0:00:42]} 36. Rb1+ {[%emt 0:00:00]} Kc6 {[%emt 0:01:43]} 37. Rc1 {[%emt 0:00:00]} Rd4 {[%emt 0:00:19]} 38. h4 {[%emt 0:00:00]} Rd3+ {[%emt 0:00:50]} 39. Kf2 {[%emt 0:00:00]} Kd5 {[%emt 0:00:16]} 40. h5 {[%emt 0:00:00]} c4 {[%emt 0:00:16]} 41. Ke2 {[%emt 0:00:00]} Kd4 {[%emt 0:01:04]} 42. g5 {[%emt 0:00:00]} c3 {[%emt 0:00:40]} 43. f5 {[%emt 0:00:00]} Rd2+ {[%emt 0:00:20]} 44. Ke1 {[%emt 0:00:00]} Kd3 {[%emt 0:00:33]} 1/2-1/2